bitfinex/quotes_BTCUSD_20251117
["timestamp","ask_amount","ask_price","bid_price","bid_amount"]
[1763400939175,0.323,93839.0,93829.0,0.0011317]
[1763400939428,0.02093,93838.0,93829.0,0.0011317]
[1763400939642,2.00887,93830.0,93829.0,0.0011317]
[1763400939860,2.00887,93830.0,93829.0,0.0001317]
[1763400940073,2.03552302,93830.0,93829.0,0.0001317]
[1763400940300,2.03552302,93830.0,93829.0,0.0011317]
[1763400940524,2.02665302,93830.0,93829.0,0.0011317]
[1763400940961,2.03552302,93830.0,93829.0,0.0011317]
[1763400941142,2.02665302,93830.0,93829.0,0.0011317]
[1763400941427,2.02665302,93830.0,93829.0,0.0001317]
[1763400941633,2.02665302,93830.0,93829.0,0.0011317]
[1763400941849,2.02763721,93830.0,93829.0,0.0011317]
[1763400942060,0.32398419,93830.0,93829.0,0.0553117]
[1763400942469,0.32398419,93830.0,93829.0,0.1327717]
[1763400942767,0.32398419,93830.0,93829.0,0.15408707]
[1763400942985,0.00098419,93830.0,93829.0,0.17319287]
[1763400944491,0.00098419,93830.0,93829.0,0.17219287]
[1763400944820,0.00098419,93830.0,93829.0,0.17419287]
[1763400945365,0.00098419,93830.0,93829.0,0.1528775]
[1763400945582,0.00098419,93830.0,93829.0,0.1538775]
[1763400946199,0.00098419,93830.0,93829.0,0.17519287]
[1763400947228,0.00098419,93830.0,93829.0,0.1538775]
[1763400947893,0.00098419,93830.0,93829.0,0.0031317]
[1763400948453,0.00098419,93830.0,93829.0,0.0011317]
[1763400948651,0.00098419,93830.0,93829.0,0.0001317]
[1763400948852,0.00098419,93830.0,93829.0,0.0021317]
[1763400949065,0.00098419,93830.0,93829.0,0.0001317]
[1763400949219,0.00098419,93830.0,93829.0,0.0011317]
[1763400949420,0.00098419,93830.0,93829.0,0.0021317]
[1763400949772,0.05048419,93830.0,93829.0,0.0011317]
[1763400949982,0.08797419,93830.0,93829.0,0.0011317]
[1763400950186,0.00098419,93830.0,93829.0,0.0011317]
[1763400950808,0.08797419,93830.0,93829.0,0.0011317]
[1763400951155,0.00098419,93830.0,93829.0,0.0011317]
[1763400951985,0.08797419,93830.0,93829.0,0.0011317]
[1763400952266,2.68527007,93830.0,93829.0,0.0011317]
[1763400952512,0.323,93822.0,93790.0,0.07746]
[1763400952682,0.323,93822.0,93798.0,0.03706364]
[1763400952683,0.7336146,93808.0,93798.0,0.03706364]
[1763400952861,2.0,93820.0,93799.0,0.09878218]
[1763400953061,0.7336146,93810.0,93807.0,0.05418]
[1763400953307,0.7336146,93817.0,93815.0,0.10416178]
[1763400953507,0.03633,93821.0,93816.0,0.02131832]
[1763400953707,2.0,93832.0,93816.0,0.02131832]
[1763400953886,2.0,93825.0,93816.0,0.02131832]
[1763400954536,2.0,93825.0,93816.0,0.03386633]
[1763400955477,2.0,93825.0,93800.0,0.11774636]
[1763400955691,0.7336146,93810.0,93800.0,0.11774636]
[1763400955886,0.7336146,93810.0,93800.0,0.10416178]
[1763400956097,0.323,93809.0,93800.0,0.10416178]
[1763400958089,0.00022488,93803.0,93800.0,0.10416178]
[1763400958448,0.00022488,93803.0,93802.0,0.05418]
[1763400958650,0.00022488,93803.0,93802.0,0.0755015]
[1763400959199,0.00022488,93803.0,93802.0,0.1529615]
[1763400960448,0.00022488,93803.0,93802.0,0.1406315]
[1763400960806,0.00022488,93803.0,93802.0,0.11931]
[1763400960967,0.00022488,93803.0,93802.0,0.12131]
[1763400961835,0.00022488,93803.0,93802.0,0.002]
[1763400962625,0.00022488,93803.0,93802.0,0.0711015]
[1763400962833,0.00022488,93803.0,93802.0,0.17111719]
[1763400963196,0.00022488,93803.0,93802.0,0.002]
[1763400963393,0.09410488,93803.0,93802.0,0.002]
[1763400963600,0.1007878,93803.0,93802.0,0.002]
[1763400963803,2.4237878,93803.0,93802.0,0.002]
[1763400964012,2.4237878,93803.0,93802.0,0.001]
[1763400964230,2.4280647,93803.0,93802.0,0.001]
[1763400964428,0.323,93800.0,93798.0,9.364e-05]
[1763400964635,2.37461,93799.0,93798.0,9.364e-05]
[1763400964842,2.41787607,93799.0,93798.0,9.364e-05]
[1763400965239,2.42455899,93799.0,93798.0,9.364e-05]
[1763400965884,2.38206899,93799.0,93798.0,9.364e-05]
[1763400966077,2.42455899,93799.0,93798.0,9.364e-05]
[1763400966516,2.49198989,93799.0,93798.0,9.364e-05]
[1763400966735,0.323,93776.0,93752.0,0.03699]
[1763400966934,0.00013217,93776.0,93752.0,0.03699]
[1763400967137,0.323,93761.0,93753.0,0.04260083]
[1763400967395,0.323,93761.0,93753.0,0.02126818]
[1763400967815,0.33634822,93761.0,93753.0,0.02126818]
[1763400968411,0.33634822,93761.0,93753.0,0.02226818]
[1763400968619,0.05221,93754.0,93753.0,0.001]
[1763400968821,0.02107,93754.0,93753.0,0.001]
[1763400969021,2.0,93759.0,93753.0,0.002]
[1763400969221,2.0,93760.0,93758.0,0.03699]
[1763400969651,2.0,93760.0,93755.0,0.02133219]
[1763400970055,0.03114,93756.0,93753.0,0.001]
[1763400970510,0.00063,93754.0,93753.0,0.001]
[1763400970688,0.00063,93754.0,93730.0,0.07193]
[1763400970889,0.7336146,93747.0,93738.0,0.07153]
[1763400971296,0.323,93746.0,93738.0,0.07153]
[1763400971491,0.323,93746.0,93739.0,0.04260401]
[1763400971713,0.323,93746.0,93745.0,0.04778]
[1763400972129,0.00013212,93746.0,93739.0,0.02126818]
[1763400972354,0.00013212,93746.0,93738.0,0.001]
[1763400972492,0.02107,93740.0,93738.0,0.001]
[1763400972692,0.00013212,93746.0,93738.0,0.001]
[1763400972948,0.00013212,93746.0,93745.0,0.08477]
[1763400973151,0.00013212,93746.0,93745.0,0.11304978]
[1763400973320,0.00013212,93746.0,93745.0,0.1563]
[1763400973521,0.00013212,93746.0,93745.0,0.17763447]
[1763400974394,0.00013212,93746.0,93745.0,0.001]
[1763400974875,0.00013212,93746.0,93745.0,0.002]
[1763400974876,0.03127212,93746.0,93745.0,0.002]
[1763400975053,2.09401212,93746.0,93745.0,0.002]
[1763400975228,2.03127212,93746.0,93745.0,0.002]
[1763400975969,2.00013212,93746.0,93745.0,0.002]
[1763400976171,2.03159212,93746.0,93745.0,0.002]
[1763400976578,2.09402212,93746.0,93745.0,0.002]
[1763400976727,1.99967999,93744.0,93730.0,0.0004]
[1763400976952,0.7336146,93740.0,93734.0,0.10416178]
[1763400977174,0.7336146,93740.0,93735.0,0.02133674]
[1763400978261,2.7336146,93745.0,93739.0,0.04871]
[1763400978486,0.00013212,93746.0,93745.0,0.08623]
[1763400978687,2.12e-06,93746.0,93745.0,0.11832103]
[1763400978838,0.03208753,93755.0,93745.0,0.11832103]
[1763400979041,0.323,93759.0,93749.0,0.10416178]
[1763400979243,0.7336146,93760.0,93749.0,0.10416178]
[1763400979462,1.0566146,93760.0,93759.0,0.03752]
[1763400979643,0.03208358,93768.0,93757.0,0.03752]
[1763400979824,0.03208358,93768.0,93758.0,0.02133151]
[1763400979825,0.53208358,93768.0,93758.0,0.02133151]
[1763400980028,2.0,93767.0,93759.0,0.00588515]
[1763400980285,2.0,93767.0,93753.0,0.03752]
[1763400980513,0.323,93764.0,93753.0,0.03752]
[1763400980661,0.323,93762.0,93753.0,0.03752]
[1763400981063,0.01699,93754.0,93749.0,0.10416178]
[1763400981263,0.323,93762.0,93749.0,0.10416178]
[1763400981264,0.00558108,93761.0,93749.0,0.10416178]
[1763400981466,0.00558108,93761.0,93745.0,0.03796082]
[1763400981667,0.323,93754.0,93745.0,0.03796082]
[1763400982290,0.01699,93753.0,93745.0,0.03796082]
[1763400982441,0.04771,93746.0,93745.0,0.00044082]
[1763400982982,2.0,93752.0,93745.0,0.00044082]
[1763400983352,2.03908,93746.0,93745.0,0.00044082]
[1763400983789,2.098,93746.0,93745.0,0.00144082]
[1763400984629,2.098,93746.0,93745.0,0.00044082]
[1763400984817,2.1419736,93746.0,93745.0,0.00044082]
[1763400985476,2.4649736,93746.0,93745.0,0.00044082]
[1763400985677,2.42155486,93746.0,93745.0,0.00044082]
[1763400985886,2.63434243,93746.0,93745.0,0.00044082]
[1763400986080,2.67776117,93746.0,93745.0,0.00044082]
[1763400987141,2.67776117,93746.0,93730.0,0.0004]
[1763400987142,0.21337657,93731.0,93730.0,0.0004]
[1763400987338,2.58038531,93731.0,93730.0,0.00053212]
[1763400987536,2.68626308,93731.0,93730.0,0.00053212]
[1763400987740,2.7129161,93731.0,93730.0,0.00053212]
[1763400987979,2.32359,93731.0,93730.0,0.00053212]
[1763400988163,2.59348657,93731.0,93730.0,0.00053212]
[1763400988993,2.66200649,93731.0,93730.0,0.00053212]
[1763400989131,2.38011,93731.0,93730.0,0.00053212]
[1763400989342,2.41221271,93731.0,93730.0,0.00053212]
[1763400989547,2.39911145,93731.0,93730.0,0.00053212]
[1763400989727,2.45563145,93731.0,93730.0,0.00053212]
[1763400990130,2.39911145,93731.0,93730.0,0.00053212]
[1763400990335,2.45563145,93731.0,93730.0,0.00053212]
[1763400990844,2.35510271,93731.0,93730.0,0.00053212]
[1763400991377,2.03210271,93731.0,93730.0,0.00053212]
[1763400991846,2.17615145,93731.0,93730.0,0.00053212]
[1763400994703,2.03210271,93731.0,93730.0,0.00053212]
[1763400995300,0.03210271,93731.0,93730.0,0.00053212]
[1763400995837,0.7336146,93740.0,93730.0,0.14235]
[1763400996031,2.0,93739.0,93735.0,0.15255178]
[1763400996231,2.0,93739.0,93736.0,0.02133651]
[1763400996485,2.0,93738.0,93736.0,0.02133651]
[1763400998873,2.0,93738.0,93733.0,0.01046939]
[1763400999074,2.0,93738.0,93734.0,0.02133697]
[1763400999301,2.0,93738.0,93737.0,0.04839]
[1763400999577,0.7336146,93746.0,93737.0,0.12048]
[1763400999780,2.0,93741.0,93738.0,0.06972606]
[1763401000199,0.03209127,93743.0,93740.0,0.08482]
[1763401000410,0.03209127,93743.0,93740.0,0.03643]
[1763401000608,2.0,93749.0,93745.0,0.04839]
[1763401000829,1.81379123,93751.0,93741.0,0.09342538]
[1763401001030,2.0,93751.0,93741.0,0.09342538]
[1763401001204,0.03208798,93752.0,93740.0,0.03643]
[1763401001205,0.03208798,93752.0,93750.0,0.10416178]
[1763401002149,0.03208798,93752.0,93751.0,0.0697231]
[1763401002360,0.7336146,93760.0,93751.0,0.1418131]
[1763401002548,0.7336146,93760.0,93759.0,0.04839]
[1763401002979,0.03208585,93762.0,93759.0,0.04839]
[1763401003187,0.03208585,93762.0,93760.0,0.02133105]
[1763401003394,0.03208585,93762.0,93761.0,0.03643]
[1763401003803,0.03252618,93762.0,93761.0,0.15691]
[1763401004238,0.03252618,93762.0,93761.0,0.08482]
[1763401004573,0.03252618,93762.0,93761.0,0.03743]
[1763401004777,0.03810701,93762.0,93761.0,0.03743]
[1763401006181,0.03810701,93762.0,93761.0,0.08582]
[1763401006386,0.08233701,93762.0,93761.0,0.001]
[1763401006591,2.08233701,93762.0,93761.0,0.001]
[1763401006994,2.13873701,93762.0,93761.0,0.001]
[1763401007214,2.13873701,93762.0,93741.0,0.07209]
[1763401007215,2.0,93757.0,93741.0,0.07209]
[1763401007432,2.0,93757.0,93730.0,0.0004]
[1763401007433,0.01755,93742.0,93730.0,0.0004]
[1763401007632,0.21336291,93739.0,93730.0,0.0004]
[1763401007841,2.0,93736.0,93730.0,0.0004]
[1763401008038,0.21336064,93738.0,93730.0,0.0004]
[1763401008244,2.21336446,93737.0,93730.0,0.0004]
[1763401008464,2.0,93739.0,93730.0,0.0004]
[1763401009710,0.01272,93731.0,93730.0,0.0004]
[1763401009964,2.0,93739.0,93730.0,0.0004]
[1763401010176,0.03209786,93731.0,93730.0,0.0004]
[1763401010610,0.04481786,93731.0,93730.0,0.0004]
[1763401010809,0.04481786,93731.0,93730.0,0.00153212]
[1763401011012,0.07063588,93731.0,93730.0,0.00153212]
[1763401011221,2.05753786,93731.0,93730.0,0.00153212]
[1763401011622,2.1009566,93731.0,93730.0,0.00153212]
[1763401012188,2.0882366,93731.0,93730.0,0.00053212]
[1763401012380,2.1009566,93731.0,93730.0,0.00053212]
[1763401012736,2.0882366,93731.0,93730.0,0.00053212]
[1763401014379,2.31433317,93731.0,93730.0,0.00053212]
[1763401015049,2.0882366,93731.0,93730.0,0.00053212]
[1763401015540,2.30161317,93731.0,93730.0,0.00053212]
[1763401015727,2.1009566,93731.0,93730.0,0.00053212]
[1763401015905,2.0882366,93731.0,93730.0,0.00053212]
[1763401016087,2.1009566,93731.0,93730.0,0.00053212]
[1763401018644,2.0882366,93731.0,93730.0,0.00053212]
[1763401019094,2.0,93749.0,93730.0,0.15744212]
[1763401019299,0.00772,93757.0,93731.0,0.10416178]
[1763401019466,2.0,93738.0,93730.0,0.00053212]
[1763401020978,0.00772,93759.0,93731.0,0.10416178]
[1763401021188,0.00772,93759.0,93730.0,0.00053212]
[1763401021189,3.07740055,93740.0,93730.0,0.00053212]
[1763401021389,2.0,93739.0,93730.0,0.00053212]
[1763401022160,0.04341874,93738.0,93730.0,0.00053212]
[1763401022375,0.04341874,93734.0,93730.0,0.00053212]
[1763401022842,0.04341874,93739.0,93730.0,0.00053212]
[1763401022960,0.04341874,93735.0,93730.0,0.00053212]
[1763401023168,0.04341874,93739.0,93730.0,0.00053212]
[1763401023368,0.00772,93731.0,93730.0,0.00053212]
[1763401023565,0.05113874,93731.0,93730.0,0.00053212]
[1763401024057,1.10949505,93740.0,93730.0,0.00053212]
[1763401024262,2.0,93739.0,93731.0,0.10416178]
[1763401024649,1.10949505,93740.0,93738.0,0.04396]
[1763401024902,1.07740055,93750.0,93739.0,0.16987583]
[1763401025114,2.0,93759.0,93749.0,0.14812178]
[1763401025305,1.07740055,93760.0,93749.0,0.14812178]
[1763401025306,0.03209058,93751.0,93750.0,0.02133333]
[1763401025514,0.01322949,93767.0,93759.0,0.07839]
[1763401025730,0.03208677,93763.0,93759.0,0.07839]
[1763401025949,1.07740055,93769.0,93760.0,0.07015]
[1763401026147,0.323,93767.0,93759.0,0.03443]
[1763401026559,2.0,93763.0,93750.0,0.03443]
[1763401026761,0.04341874,93758.0,93739.0,0.03443]
[1763401026959,0.323,93748.0,93739.0,0.03443]
[1763401027171,0.04341874,93745.0,93730.0,0.0004]
[1763401027377,2.0,93747.0,93730.0,0.0004]
[1763401027378,0.00772,93731.0,93730.0,0.0004]
[1763401027587,2.87413874,93731.0,93730.0,0.0004]
[1763401027808,2.36641874,93731.0,93730.0,0.0004]
[1763401028456,2.37413874,93731.0,93730.0,0.0004]
[1763401028690,2.37413874,93731.0,93730.0,0.00053212]
[1763401029084,2.38185874,93731.0,93730.0,0.00053212]
[1763401029320,2.37413874,93731.0,93730.0,0.00053212]
[1763401029507,2.36641874,93731.0,93730.0,0.00053212]
[1763401030066,2.58751531,93731.0,93730.0,0.00053212]
[1763401030490,2.36641874,93731.0,93730.0,0.00053212]
[1763401030702,2.37413874,93731.0,93730.0,0.00053212]
[1763401031160,2.39852021,93731.0,93730.0,0.00053212]
[1763401031942,2.35510147,93731.0,93730.0,0.00053212]
[1763401032685,2.35510147,93731.0,93730.0,0.04449212]
[1763401032867,2.35510147,93731.0,93730.0,0.11464212]
[1763401032868,0.03210147,93731.0,93730.0,0.11464212]
[1763401033063,0.03210147,93731.0,93730.0,0.04449212]
[1763401033272,0.04341874,93737.0,93730.0,0.00053212]
[1763401033406,0.04341874,93735.0,93730.0,0.00053212]
[1763401033612,2.0,93734.0,93730.0,0.00053212]
[1763401034037,0.05113874,93731.0,93730.0,0.00053212]
[1763401034237,2.05113874,93731.0,93730.0,0.00053212]
[1763401034798,2.05885874,93731.0,93730.0,0.00153212]
[1763401034977,2.05885874,93731.0,93730.0,0.00053212]
[1763401035339,2.05113874,93731.0,93730.0,0.00053212]
[1763401036454,1.87276527,93731.0,93730.0,0.00053212]
[1763401037006,2.08613981,93733.0,93730.0,0.00053212]
[1763401037231,0.03209725,93738.0,93730.0,0.00053212]
[1763401037232,1.87276527,93731.0,93730.0,0.00053212]
[1763401037469,1.87834876,93731.0,93730.0,0.00053212]
[1763401037678,2.09172533,93731.0,93730.0,0.00053212]
[1763401038035,2.12382718,93731.0,93730.0,0.00053212]
[1763401038875,1.91045061,93731.0,93730.0,0.00053212]
[1763401041317,2.12382718,93731.0,93730.0,0.00053212]
[1763401042500,2.16724592,93731.0,93730.0,0.00053212]
[1763401042910,0.21344175,93703.0,93683.0,0.06649]
[1763401043202,2.0,93696.0,93683.0,0.06649]
[1763401043399,0.000132,93696.0,93683.0,0.06649]
[1763401043745,0.000132,93696.0,93680.0,0.0004]
[1763401043746,2.0,93693.0,93681.0,0.03476]
[1763401043945,0.000132,93696.0,93681.0,0.03476]
[1763401043946,2.0,93695.0,93681.0,0.03476]
[1763401044167,2.0,93695.0,93682.0,0.10416178]
[1763401044349,2.0,93695.0,93687.0,0.001]
[1763401044689,2.21346159,93694.0,93680.0,0.0004]
[1763401044899,1.07740055,93690.0,93681.0,0.001]
[1763401045101,1.07740055,93690.0,93680.0,0.0004]
[1763401045931,2.0,93689.0,93680.0,0.0004]
[1763401046354,0.21347739,93687.0,93680.0,0.0004]
[1763401046564,2.0,93688.0,93680.0,0.0004]
[1763401046768,0.21347373,93689.0,93680.0,0.0004]
[1763401046769,0.21349046,93681.0,93680.0,0.0004]
[1763401046981,2.02134905,93681.0,93680.0,0.0004]
[1763401047195,2.0,93681.0,93680.0,0.0004]
[1763401047418,0.2134828,93685.0,93680.0,0.0004]
[1763401047628,2.0,93686.0,93680.0,0.0004]
[1763401047835,2.21348082,93686.0,93680.0,0.0004]
[1763401048041,2.0,93686.0,93680.0,0.0004]
[1763401048252,1.07740055,93690.0,93680.0,0.0004]
[1763401048253,2.0,93689.0,93680.0,0.0004]
[1763401048460,2.0,93689.0,93681.0,0.006689]
[1763401048657,2.0,93689.0,93680.0,0.0004]
[1763401049477,0.21348669,93683.0,93680.0,0.0004]
[1763401049721,0.21348457,93684.0,93680.0,0.0004]
[1763401049943,2.0,93689.0,93681.0,0.03342]
[1763401050505,1.80073876,93689.0,93681.0,0.03342]
[1763401050739,2.0,93689.0,93681.0,0.03342]
[1763401050905,2.0,93689.0,93680.0,0.0004]
[1763401051133,0.21347882,93687.0,93680.0,0.0004]
[1763401051355,2.0,93689.0,93680.0,0.0004]
[1763401051572,2.0,93681.0,93680.0,0.0004]
[1763401052129,2.21348616,93683.0,93680.0,0.0004]
[1763401052533,2.03211886,93681.0,93680.0,0.0004]
[1763401052938,2.24560932,93681.0,93680.0,0.0004]
[1763401053526,2.03211886,93681.0,93680.0,0.0004]
[1763401053693,2.28902806,93681.0,93680.0,0.0004]
[1763401054063,2.28917963,93681.0,93680.0,0.0004]
[1763401054262,2.28902806,93681.0,93680.0,0.0004]
[1763401054581,2.28917963,93681.0,93680.0,0.0004]
[1763401054823,2.31437575,93681.0,93680.0,0.0004]
[1763401055708,2.28902806,93681.0,93680.0,0.0004]
[1763401056284,2.61202806,93681.0,93680.0,0.0004]
[1763401056511,2.57993199,93671.0,93670.0,0.00185774]
[1763401056711,0.57994111,93667.0,93666.0,2.49170433]
[1763401056920,0.57994111,93667.0,93666.0,1.09346433]
[1763401056921,2.62994111,93667.0,93666.0,1.09346433]
[1763401057130,2.65533731,93667.0,93666.0,1.09346433]
[1763401057845,2.65533731,93667.0,93666.0,1.09351106]
[1763401058054,2.60533731,93667.0,93666.0,1.09351106]
[1763401058254,2.65533731,93667.0,93666.0,1.09351106]
[1763401059116,2.65633731,93667.0,93666.0,1.09351106]
[1763401059539,2.65533731,93667.0,93666.0,0.36812054]
[1763401059882,2.65633731,93667.0,93666.0,0.36812054]
[1763401060304,2.2570232,93631.0,93620.0,0.0004]
[1763401060521,0.04341874,93628.0,93591.0,0.01887967]
[1763401060724,2.0,93591.0,93577.0,0.03342]
[1763401060922,1.0771497,93587.0,93570.0,0.0004]
[1763401061323,1.07740055,93590.0,93570.0,0.0004]
[1763401061324,2.0,93582.0,93570.0,0.02177437]
[1763401061516,1.07740055,93583.0,93570.0,0.02177437]
[1763401061517,2.0097,93574.0,93570.0,0.0004]
[1763401061699,2.05311874,93574.0,93570.0,0.0004]
[1763401061897,2.06295041,93574.0,93570.0,0.0004]
[1763401062101,2.06295041,93574.0,93573.0,0.00575008]
[1763401062987,2.05325041,93574.0,93573.0,0.00575008]
[1763401063187,2.04355041,93574.0,93573.0,0.00575008]
[1763401063408,2.05325041,93574.0,93573.0,0.00475008]
[1763401063601,2.05325041,93574.0,93573.0,0.00575008]
[1763401063929,2.05325041,93574.0,93573.0,0.00475008]
[1763401064125,2.00013167,93574.0,93573.0,0.00475008]
[1763401064577,2.00983167,93574.0,93573.0,0.00475008]
[1763401065142,2.06295041,93574.0,93573.0,0.00475008]
[1763401066606,2.08432935,93574.0,93573.0,0.00475008]
[1763401066812,2.07462935,93574.0,93573.0,0.00475008]
[1763401067029,2.07462935,93574.0,93573.0,0.00726113]
[1763401067233,2.02151061,93574.0,93573.0,0.00726113]
[1763401067549,2.02151061,93574.0,93573.0,0.11779113]
[1763401067749,2.02151061,93574.0,93573.0,0.05019113]
[1763401068291,0.02151061,93574.0,93573.0,0.00726113]
[1763401068495,2.02151061,93574.0,93573.0,0.00726113]
[1763401069567,2.02151061,93574.0,93573.0,0.05019113]
[1763401069770,2.02151061,93574.0,93573.0,0.05119113]
[1763401069923,2.02151061,93574.0,93573.0,0.00826113]
[1763401070978,2.02151061,93574.0,93573.0,0.05119113]
[1763401071739,2.02151061,93574.0,93573.0,0.00826113]
[1763401072149,2.02151061,93574.0,93573.0,0.05119113]
[1763401072150,0.02151061,93574.0,93573.0,0.05119113]
[1763401072552,0.02151061,93574.0,93573.0,0.11879113]
[1763401072954,0.02151061,93574.0,93573.0,0.05119113]
[1763401073342,0.00013167,93574.0,93573.0,0.11879113]
[1763401076742,0.00013167,93574.0,93573.0,0.11823222]
[1763401077525,0.00013167,93574.0,93573.0,0.00770222]
[1763401077742,2.00013167,93574.0,93573.0,0.00770222]
[1763401078626,2.01989167,93574.0,93573.0,0.00670222]
[1763401079819,2.23362625,93574.0,93573.0,0.00670222]
[1763401080030,2.01989167,93574.0,93573.0,0.00670222]
[1763401080438,2.00013167,93574.0,93573.0,0.00670222]
[1763401080663,0.01989167,93574.0,93573.0,0.00670222]
[1763401080905,0.00013167,93574.0,93573.0,0.00670222]
[1763401081322,2.58307041,93574.0,93573.0,0.00670222]
[1763401081560,2.29680499,93574.0,93573.0,0.00670222]
[1763401082007,2.14258975,93574.0,93573.0,0.00670222]
[1763401082430,1.92885517,93574.0,93573.0,0.00670222]
[1763401082640,1.92885517,93581.0,93573.0,0.00670222]
[1763401082855,1.92885517,93574.0,93573.0,0.00463136]
[1763401084174,1.92885517,93581.0,93573.0,0.00463136]
[1763401084596,0.21373458,93574.0,93573.0,0.00463136]
[1763401084814,1.92885517,93581.0,93573.0,0.00463136]
[1763401085243,1.92985517,93581.0,93573.0,0.00463136]
[1763401085453,0.21373451,93575.0,93573.0,0.00463136]
[1763401085700,1.92885517,93574.0,93573.0,0.00463136]
[1763401087780,1.92885517,93581.0,93573.0,0.00463136]
[1763401088012,0.21373458,93574.0,93573.0,0.00463136]
[1763401088247,2.14258975,93574.0,93573.0,0.00463136]
[1763401088451,2.14258975,93574.0,93573.0,0.00714241]
[1763401088685,2.18600849,93574.0,93573.0,0.00714241]
[1763401088888,2.19578421,93574.0,93573.0,0.00714241]
[1763401089099,2.18600849,93574.0,93573.0,0.00714241]
[1763401089302,2.21832872,93574.0,93573.0,0.00714241]
[1763401090043,2.00459414,93574.0,93573.0,0.00714241]
[1763401090254,2.21832872,93574.0,93573.0,0.00714241]
[1763401090456,2.29547935,93574.0,93573.0,0.00714241]
[1763401090673,2.21932872,93574.0,93573.0,0.00714241]
[1763401091426,2.21832872,93574.0,93573.0,0.00714241]
[1763401092861,1.9611754,93574.0,93573.0,0.00714241]
[1763401093271,1.9611754,93574.0,93573.0,0.12329241]
[1763401093457,1.92985517,93574.0,93573.0,0.12329241]
[1763401093861,1.92885517,93581.0,93573.0,0.05548241]
[1763401094078,0.03214881,93582.0,93573.0,0.05548241]
[1763401094079,1.92885517,93574.0,93573.0,0.00463136]
[1763401094324,0.00980287,93574.0,93573.0,0.00463136]
[1763401094528,0.00980203,93574.0,93573.0,0.00463136]
[1763401094755,1.9386572,93574.0,93573.0,0.00714241]
[1763401095351,0.44799145,93610.0,93573.0,0.00714241]
[1763401095352,0.02828612,93600.0,93573.0,0.12329241]
[1763401095567,0.05657225,93614.0,93573.0,0.12329241]
[1763401095568,0.02828612,93602.0,93590.0,0.04834]
[1763401095768,0.00981075,93591.0,93590.0,0.04834]
[1763401095978,0.00981075,93591.0,93590.0,0.1375198]
[1763401095979,0.02359313,93591.0,93590.0,0.1375198]
[1763401096188,0.02359313,93591.0,93582.0,0.06781]
[1763401096405,0.02260321,93598.0,93590.0,0.11615]
[1763401096623,0.21370261,93588.0,93573.0,0.00463136]
[1763401096839,0.21371859,93581.0,93573.0,0.00463136]
[1763401097089,2.0,93579.0,93573.0,0.00463136]
[1763401097298,0.00981445,93578.0,93573.0,0.00463136]
[1763401097505,0.00981445,93577.0,93573.0,0.00463136]
[1763401097704,0.2137342,93575.0,93573.0,0.00563136]
[1763401097855,0.03244512,93574.0,93573.0,0.00463136]
[1763401098319,0.00981445,93574.0,93573.0,0.00463136]
[1763401098636,2.00981445,93574.0,93573.0,0.00463136]
[1763401098838,2.0834591,93574.0,93573.0,0.00463136]
[1763401099796,2.03244512,93574.0,93573.0,0.00463136]
[1763401100612,2.10414998,93574.0,93573.0,0.00463136]
[1763401100813,2.07586386,93574.0,93573.0,0.00463136]
[1763401101200,2.07586386,93574.0,93573.0,0.00714241]
[1763401102432,2.07686386,93574.0,93573.0,0.00714241]
[1763401103152,2.03344512,93574.0,93573.0,0.00714241]
[1763401103795,2.28388439,93574.0,93573.0,0.00714241]
[1763401104383,2.30526333,93574.0,93573.0,0.00714241]
[1763401104803,2.09152875,93574.0,93573.0,0.00714241]
[1763401105007,2.05382406,93574.0,93573.0,0.00714241]
[1763401106615,2.06074622,93574.0,93573.0,0.12113241]
[1763401106860,2.03244512,93574.0,93573.0,0.12113241]
[1763401107847,2.03244512,93574.0,93573.0,0.00714241]
[1763401108290,2.03244512,93574.0,93573.0,0.00814241]
[1763401108702,2.07586386,93574.0,93573.0,0.00814241]
[1763401110338,2.07586386,93574.0,93573.0,0.00714241]
[1763401110541,2.03244512,93574.0,93573.0,0.00714241]
[1763401111155,2.06074935,93574.0,93573.0,0.00714241]
[1763401111373,2.03244512,93574.0,93573.0,0.00714241]
[1763401112431,2.03244512,93574.0,93573.0,0.00214241]
[1763401114594,2.03244512,93574.0,93573.0,0.04606241]
[1763401114796,2.03244512,93574.0,93573.0,0.00214241]
[1763401114922,2.03244512,93574.0,93573.0,0.00314241]
[1763401115123,2.03244512,93574.0,93573.0,0.00214241]
[1763401116530,2.03244512,93574.0,93573.0,0.00180815]
[1763401116732,2.02263067,93574.0,93573.0,0.11410815]
[1763401117029,2.0,93582.0,93573.0,0.11410815]
[1763401117236,2.0,93580.0,93573.0,0.04392]
[1763401117450,2.0,93578.0,93570.0,0.0004]
[1763401117658,2.0,93576.0,93570.0,0.0004]
[1763401118107,2.0,93577.0,93570.0,0.0004]
[1763401118313,2.0,93575.0,93571.0,0.17254178]
[1763401118525,2.0,93577.0,93570.0,0.0004]
[1763401118737,0.2137396,93572.0,93570.0,0.0004]
[1763401118943,2.0,93577.0,93570.0,0.0004]
[1763401119157,2.0,93575.0,93570.0,0.0004]
[1763401119786,2.0,93575.0,93570.0,0.0014]
[1763401120202,2.0,93575.0,93570.0,0.0004]
[1763401120414,2.0,93575.0,93574.0,0.04392]
[1763401120640,0.03215484,93576.0,93574.0,0.04392]
[1763401120851,0.00044063,93578.0,93575.0,0.23783501]
[1763401121069,0.00044063,93578.0,93577.0,0.04392]
[1763401121759,0.00044063,93578.0,93577.0,0.1123]
[1763401123508,0.00044063,93578.0,93577.0,0.12357]
[1763401124201,0.00044063,93578.0,93577.0,0.12457]
[1763401124646,0.00044063,93578.0,93577.0,0.12357]
[1763401124861,0.00044063,93578.0,93577.0,0.1133]
[1763401125644,0.00044063,93578.0,93577.0,0.1123]
[1763401126376,0.00044063,93578.0,93577.0,0.05622]
[1763401126760,0.00044063,93578.0,93577.0,0.04392]
[1763401126978,0.00044063,93578.0,93577.0,0.04492]
[1763401127332,0.00044063,93578.0,93570.0,0.0004]
[1763401127534,0.00044063,93578.0,93577.0,0.04492]
[1763401127739,0.00044063,93578.0,93577.0,0.00269542]
[1763401127936,0.00044063,93578.0,93577.0,0.00169542]
[1763401128134,0.00044063,93578.0,93577.0,0.00269542]
[1763401128352,0.00044063,93578.0,93577.0,0.11499542]
[1763401128554,0.00044063,93578.0,93577.0,0.11399542]
[1763401128774,0.00044063,93578.0,93577.0,0.00269542]
[1763401130038,0.00044063,93578.0,93577.0,0.00169542]
[1763401130499,0.00044063,93578.0,93577.0,0.00269542]
[1763401130994,0.00044063,93578.0,93577.0,0.00169542]